[Event "Titled Tuesday Blitz August 16 Late 2022"]
[White "Rosenberg, Evan S"]
[Black "Lagowski, Patryk"]
[WhiteFideId "2019299"]
[BlackFideId "1114611"]
[WhiteElo "1999"]
[BlackElo "2274"]
[Result "1-0"]
[Round "07"]
[TimeControl "180+1"]
[Date "2022.08.18"]
[WhiteClock "0:00:00"]
[BlackClock "0:00:00"]

1. e4 {[%clk 0:00:00]}  c5 {[%clk 0:00:00]} 2. Nc3 {[%clk 0:00:00]}  d6 {[%clk 0:00:00]} 3. f4 {[%clk 0:00:00]}  g6 {[%clk 0:00:00]} 4. Nf3 {[%clk 0:00:00]}  Bg7 {[%clk 0:00:00]} 5. Bb5+ {[%clk 0:00:00]}  Bd7 {[%clk 0:00:00]} 6. a4 {[%clk 0:00:00]}  e6 {[%clk 0:00:00]} 7. e5 {[%clk 0:00:00]}  d5 {[%clk 0:00:00]} 8. d3 {[%clk 0:00:00]}  Ne7 {[%clk 0:00:00]} 9. O-O {[%clk 0:00:00]}  a6 {[%clk 0:00:00]} 10. Bxd7+ {[%clk 0:00:00]}  Nxd7 {[%clk 0:00:00]} 11. d4 {[%clk 0:00:00]}  cxd4 {[%clk 0:00:00]} 12. Nxd4 {[%clk 0:00:00]}  Nf5 {[%clk 0:00:00]} 13. Nxf5 {[%clk 0:00:00]}  gxf5 {[%clk 0:00:00]} 14. Be3 {[%clk 0:00:00]}  Qc7 {[%clk 0:00:00]} 15. a5 {[%clk 0:00:00]}  Bf8 {[%clk 0:00:00]} 16. Na4 {[%clk 0:00:00]}  Nc5 {[%clk 0:00:00]} 17. Nxc5 {[%clk 0:00:00]}  Bxc5 {[%clk 0:00:00]} 18. Bxc5 {[%clk 0:00:00]}  Qxc5+ {[%clk 0:00:00]} 19. Kh1 {[%clk 0:00:00]}  O-O-O {[%clk 0:00:00]} 20. Rf3 {[%clk 0:00:00]}  Kb8 {[%clk 0:00:00]} 21. Rc3 {[%clk 0:00:00]}  Qb4 {[%clk 0:00:00]} 22. Qf1 {[%clk 0:00:00]}  Rc8 {[%clk 0:00:00]} 23. Rb3 {[%clk 0:00:00]}  Qc4 {[%clk 0:00:00]} 24. Qxc4 {[%clk 0:00:00]}  Rxc4 {[%clk 0:00:00]} 25. g3 {[%clk 0:00:00]}  Rxc2 {[%clk 0:00:00]} 26. Ra4 {[%clk 0:00:00]}  Rhc8 {[%clk 0:00:00]} 27. Rab4 {[%clk 0:00:00]}  R8c7 {[%clk 0:00:00]} 28. Rb6 {[%clk 0:00:00]}  Ka7 {[%clk 0:00:00]} 29. Kg1 {[%clk 0:00:00]}  Rd2 {[%clk 0:00:00]} 30. Rf3 {[%clk 0:00:00]}  Rc1+ {[%clk 0:00:00]} 31. Rf1 {[%clk 0:00:00]}  Rxf1+ {[%clk 0:00:00]} 32. Kxf1 {[%clk 0:00:00]}  Rxh2 {[%clk 0:00:00]} 33. b4 {[%clk 0:00:00]}  h5 {[%clk 0:00:00]} 34. Rd6 {[%clk 0:00:00]}  Rb2 {[%clk 0:00:00]} 35. Rd7 {[%clk 0:00:00]}  Rxb4 {[%clk 0:00:00]} 36. Rxf7 {[%clk 0:00:00]}  Rb3 {[%clk 0:00:00]} 37. Kf2 {[%clk 0:00:00]}  Rb2+ {[%clk 0:00:00]} 38. Kf3 {[%clk 0:00:00]}  Ra2 {[%clk 0:00:00]} 39. Re7 {[%clk 0:00:00]}  Ra3+ {[%clk 0:00:00]} 40. Kg2 {[%clk 0:00:00]}  Rxa5 {[%clk 0:00:00]} 41. Rxe6 {[%clk 0:00:00]}  Ra2+ {[%clk 0:00:00]} 42. Kf3 {[%clk 0:00:00]}  a5 {[%clk 0:00:00]} 43. Rd6 {[%clk 0:00:00]}  Rc2 {[%clk 0:00:00]} 44. Rxd5 {[%clk 0:00:00]}  Ka6 {[%clk 0:00:00]} 45. e6 {[%clk 0:00:00]}  Rc6 {[%clk 0:00:00]} 46. e7 {[%clk 0:00:00]}  Rc3+ {[%clk 0:00:00]} 47. Kf2 {[%clk 0:00:00]}  Rc2+ {[%clk 0:00:00]} 48. Kf1 {[%clk 0:00:00]}  Rc1+ {[%clk 0:00:00]} 49. Ke2 {[%clk 0:00:00]}  Rc8 {[%clk 0:00:00]} 50. Rd8 {[%clk 0:00:00]}  Rc4 {[%clk 0:00:00]} 51. e8=Q {[%clk 0:00:00]}  Re4+ {[%clk 0:00:00]} 52. Qxe4 {[%clk 0:00:00]}  fxe4 {[%clk 0:00:00]} 53. Re8 {[%clk 0:00:00]}  b5 {[%clk 0:00:00]} 54. Rxe4 {[%clk 0:00:00]}  a4 {[%clk 0:00:00]} 55. Kd3 {[%clk 0:00:00]}  Ka5 {[%clk 0:00:00]} 56. Kc3 {[%clk 0:00:00]}  b4+ {[%clk 0:00:00]} 57. Rxb4 {[%clk 0:00:00]}  a3 {[%clk 0:00:00]} 58. Kb3 {[%clk 0:00:00]}  a2 {[%clk 0:00:00]} 59. Ra4+ {[%clk 0:00:00]}  Kb5 {[%clk 0:00:00]} 60. Rxa2 {[%clk 0:00:00]}  Kc5 {[%clk 0:00:00]} 61. Rh2 {[%clk 0:00:00]}  Kd4 {[%clk 0:00:00]} 62. Rxh5 {[%clk 0:00:00]}  Ke3 {[%clk 0:00:00]} 63. Re5+ {[%clk 0:00:00]}  Kf3 {[%clk 0:00:00]} 64. f5 {[%clk 0:00:00]}  Kxg3 {[%clk 0:00:00]} 65. f6 {[%clk 0:00:00]}  Kf4 {[%clk 0:00:00]} 66. Re8 {[%clk 0:00:00]}  Kf5 {[%clk 0:00:00]} 67. f7 {[%clk 0:00:00]}  Kf4 {[%clk 0:00:00]} 68. f8=Q+ {[%clk 0:00:00]} 1-0


[Site "https://www.chess.com"]

[Event "Titled Tuesday Blitz August 16 Late 2022"]
[White "Sanchez, Robert"]
[Black "Tarnowska, Aleksandra"]
[WhiteFideId "2034360"]
[BlackFideId "1180967"]
[WhiteElo "1966"]
[BlackElo "1700"]
[Result "1-0"]
[Round "07"]
[TimeControl "180+1"]
[Date "2022.08.18"]
[WhiteClock "0:00:00"]
[BlackClock "0:00:00"]

1. e4 {[%clk 0:00:00]}  c5 {[%clk 0:00:00]} 2. Nf3 {[%clk 0:00:00]}  e6 {[%clk 0:00:00]} 3. d4 {[%clk 0:00:00]}  cxd4 {[%clk 0:00:00]} 4. Nxd4 {[%clk 0:00:00]}  a6 {[%clk 0:00:00]} 5. Bd3 {[%clk 0:00:00]}  Bc5 {[%clk 0:00:00]} 6. Nb3 {[%clk 0:00:00]}  Ba7 {[%clk 0:00:00]} 7. Nc3 {[%clk 0:00:00]}  d6 {[%clk 0:00:00]} 8. Qe2 {[%clk 0:00:00]}  Nf6 {[%clk 0:00:00]} 9. Be3 {[%clk 0:00:00]}  Nc6 {[%clk 0:00:00]} 10. O-O-O {[%clk 0:00:00]}  O-O {[%clk 0:00:00]} 11. Kb1 {[%clk 0:00:00]}  b5 {[%clk 0:00:00]} 12. f4 {[%clk 0:00:00]}  Qc7 {[%clk 0:00:00]} 13. Bxa7 {[%clk 0:00:00]}  Rxa7 {[%clk 0:00:00]} 14. g4 {[%clk 0:00:00]}  b4 {[%clk 0:00:00]} 15. Na4 {[%clk 0:00:00]}  Qa5 {[%clk 0:00:00]} 16. Nxa5 {[%clk 0:00:00]}  Nxa5 {[%clk 0:00:00]} 17. g5 {[%clk 0:00:00]}  Nd7 {[%clk 0:00:00]} 18. h4 {[%clk 0:00:00]}  Bb7 {[%clk 0:00:00]} 19. h5 {[%clk 0:00:00]}  Bc6 {[%clk 0:00:00]} 20. b3 {[%clk 0:00:00]}  Bxa4 {[%clk 0:00:00]} 21. bxa4 {[%clk 0:00:00]}  Nc5 {[%clk 0:00:00]} 22. g6 {[%clk 0:00:00]}  Nxa4 {[%clk 0:00:00]} 23. Qe3 {[%clk 0:00:00]}  Nc3+ {[%clk 0:00:00]} 24. Ka1 {[%clk 0:00:00]}  Nxd1 {[%clk 0:00:00]} 25. Qxa7 {[%clk 0:00:00]}  Nc6 {[%clk 0:00:00]} 26. Qc7 {[%clk 0:00:00]}  Nf2 {[%clk 0:00:00]} 27. gxh7+ {[%clk 0:00:00]}  Kh8 {[%clk 0:00:00]} 28. Rg1 {[%clk 0:00:00]}  Nd4 {[%clk 0:00:00]} 29. Qxd6 {[%clk 0:00:00]} 1-0


[Site "https://www.chess.com"]

[Event "Titled Tuesday Blitz August 16 Late 2022"]
[White "Senthil Maran K"]
[Black "Miszler, Levente"]
[WhiteFideId "25035681"]
[BlackFideId "763276"]
[WhiteElo "2124"]
[BlackElo "1966"]
[Result "1-0"]
[Round "07"]
[TimeControl "180+1"]
[Date "2022.08.18"]
[WhiteClock "0:00:00"]
[BlackClock "0:00:00"]

1. c4 {[%clk 0:00:00]}  Nf6 {[%clk 0:00:00]} 2. Nc3 {[%clk 0:00:00]}  c5 {[%clk 0:00:00]} 3. Nf3 {[%clk 0:00:00]}  Nc6 {[%clk 0:00:00]} 4. d4 {[%clk 0:00:00]}  cxd4 {[%clk 0:00:00]} 5. Nxd4 {[%clk 0:00:00]}  Nxd4 {[%clk 0:00:00]} 6. Qxd4 {[%clk 0:00:00]}  d6 {[%clk 0:00:00]} 7. g3 {[%clk 0:00:00]}  g6 {[%clk 0:00:00]} 8. Bg2 {[%clk 0:00:00]}  Bg7 {[%clk 0:00:00]} 9. O-O {[%clk 0:00:00]}  O-O {[%clk 0:00:00]} 10. Bg5 {[%clk 0:00:00]}  a6 {[%clk 0:00:00]} 11. Qh4 {[%clk 0:00:00]}  Be6 {[%clk 0:00:00]} 12. b3 {[%clk 0:00:00]}  Rb8 {[%clk 0:00:00]} 13. Rad1 {[%clk 0:00:00]}  b5 {[%clk 0:00:00]} 14. c5 {[%clk 0:00:00]}  b4 {[%clk 0:00:00]} 15. Nd5 {[%clk 0:00:00]}  Bxd5 {[%clk 0:00:00]} 16. Bxd5 {[%clk 0:00:00]}  e6 {[%clk 0:00:00]} 17. Bc4 {[%clk 0:00:00]}  d5 {[%clk 0:00:00]} 18. Bxa6 {[%clk 0:00:00]}  Qa5 {[%clk 0:00:00]} 19. Bd3 {[%clk 0:00:00]}  Nd7 {[%clk 0:00:00]} 20. c6 {[%clk 0:00:00]}  Nc5 {[%clk 0:00:00]} 21. Bb1 {[%clk 0:00:00]}  Rfc8 {[%clk 0:00:00]} 22. Bf4 {[%clk 0:00:00]}  e5 {[%clk 0:00:00]} 23. Bh6 {[%clk 0:00:00]}  d4 {[%clk 0:00:00]} 24. Bxg7 {[%clk 0:00:00]}  Kxg7 {[%clk 0:00:00]} 25. f4 {[%clk 0:00:00]}  e4 {[%clk 0:00:00]} 26. f5 {[%clk 0:00:00]}  Rxc6 {[%clk 0:00:00]} 27. f6+ {[%clk 0:00:00]}  Kg8 {[%clk 0:00:00]} 28. Qh6 {[%clk 0:00:00]}  Ne6 {[%clk 0:00:00]} 29. Bxe4 {[%clk 0:00:00]}  Rc5 {[%clk 0:00:00]} 30. Qd2 {[%clk 0:00:00]}  Re5 {[%clk 0:00:00]} 31. Bd3 {[%clk 0:00:00]}  Re3 {[%clk 0:00:00]} 32. Bc4 {[%clk 0:00:00]}  Qe5 {[%clk 0:00:00]} 33. Bxe6 {[%clk 0:00:00]}  Qxe6 {[%clk 0:00:00]} 34. Qxd4 {[%clk 0:00:00]}  Rxe2 {[%clk 0:00:00]} 35. Qd8+ {[%clk 0:00:00]}  Qe8 {[%clk 0:00:00]} 36. Qxe8+ {[%clk 0:00:00]}  Rbxe8 {[%clk 0:00:00]} 37. Rf2 {[%clk 0:00:00]}  R2e6 {[%clk 0:00:00]} 38. Rd4 {[%clk 0:00:00]}  g5 {[%clk 0:00:00]} 39. Rxb4 {[%clk 0:00:00]}  h6 {[%clk 0:00:00]} 40. Kg2 {[%clk 0:00:00]}  Kh7 {[%clk 0:00:00]} 41. Rb5 {[%clk 0:00:00]}  Kg6 {[%clk 0:00:00]} 42. Rbf5 {[%clk 0:00:00]}  Ra8 {[%clk 0:00:00]} 43. a4 {[%clk 0:00:00]}  Rb8 {[%clk 0:00:00]} 44. R5f3 {[%clk 0:00:00]}  Rb4 {[%clk 0:00:00]} 45. h3 {[%clk 0:00:00]}  Reb6 {[%clk 0:00:00]} 46. a5 {[%clk 0:00:00]}  R6b5 {[%clk 0:00:00]} 47. Ra2 {[%clk 0:00:00]}  h5 {[%clk 0:00:00]} 48. a6 {[%clk 0:00:00]}  Rb8 {[%clk 0:00:00]} 49. a7 {[%clk 0:00:00]}  Ra8 {[%clk 0:00:00]} 50. Ra6 {[%clk 0:00:00]}  Rb7 {[%clk 0:00:00]} 51. b4 {[%clk 0:00:00]}  Rxb4 {[%clk 0:00:00]} 52. Rfa3 {[%clk 0:00:00]}  Rb7 {[%clk 0:00:00]} 53. Ra2 {[%clk 0:00:00]}  Rc7 {[%clk 0:00:00]} 54. Kf2 {[%clk 0:00:00]}  Rb7 {[%clk 0:00:00]} 55. g4 {[%clk 0:00:00]}  hxg4 {[%clk 0:00:00]} 56. hxg4 {[%clk 0:00:00]}  Rc7 {[%clk 0:00:00]} 57. R2a4 {[%clk 0:00:00]}  Rb7 {[%clk 0:00:00]} 58. Ke3 {[%clk 0:00:00]}  Rc7 {[%clk 0:00:00]} 59. R4a5 {[%clk 0:00:00]}  Rd7 {[%clk 0:00:00]} 60. Ke4 {[%clk 0:00:00]}  Rc7 {[%clk 0:00:00]} 61. Kd4 {[%clk 0:00:00]}  Rc1 {[%clk 0:00:00]} 62. Ke5 {[%clk 0:00:00]}  Rc7 {[%clk 0:00:00]} 63. Kd6 {[%clk 0:00:00]}  Rc1 {[%clk 0:00:00]} 64. Rb6 {[%clk 0:00:00]}  Rd1+ {[%clk 0:00:00]} 65. Kc7 {[%clk 0:00:00]}  Rc1+ {[%clk 0:00:00]} 66. Rc6 {[%clk 0:00:00]}  Rb1 {[%clk 0:00:00]} 67. Raa6 {[%clk 0:00:00]}  Rb2 {[%clk 0:00:00]} 68. Rcb6 {[%clk 0:00:00]}  Re2 {[%clk 0:00:00]} 69. Kb7 {[%clk 0:00:00]}  Ree8 {[%clk 0:00:00]} 70. Rc6 {[%clk 0:00:00]}  Red8 {[%clk 0:00:00]} 71. Ra5 {[%clk 0:00:00]}  Re8 {[%clk 0:00:00]} 72. Rc7 {[%clk 0:00:00]}  Red8 {[%clk 0:00:00]} 73. Kb6 {[%clk 0:00:00]}  Kxf6 {[%clk 0:00:00]} 74. Rb5 {[%clk 0:00:00]}  Rd6+ {[%clk 0:00:00]} 75. Kb7 {[%clk 0:00:00]}  Rdd8 {[%clk 0:00:00]} 76. Rb6+ {[%clk 0:00:00]}  Kg7 {[%clk 0:00:00]} 77. Ka6 {[%clk 0:00:00]}  Re8 {[%clk 0:00:00]} 78. Rcb7 {[%clk 0:00:00]}  Rac8 {[%clk 0:00:00]} 79. Rb8 {[%clk 0:00:00]}  Rc1 {[%clk 0:00:00]} 80. Rxe8 {[%clk 0:00:00]}  Ra1+ {[%clk 0:00:00]} 81. Kb7 {[%clk 0:00:00]} 1-0


[Site "https://www.chess.com"]

[Event "Titled Tuesday Blitz August 16 Late 2022"]
[White "Swiercz, Dariusz"]
[Black "Wu, Rochelle"]
[WhiteFideId "1126881"]
[BlackFideId "30908132"]
[WhiteElo "2627"]
[BlackElo "2168"]
[Result "1-0"]
[Round "07"]
[TimeControl "180+1"]
[Date "2022.08.16"]
[WhiteClock "0:01:03"]
[BlackClock "0:00:12"]

1. b3 {[%clk 0:02:58]}  b6 {[%clk 0:02:59]} 2. Bb2 {[%clk 0:02:59]}  Bb7 {[%clk 0:02:59]} 3. e3 {[%clk 0:02:59]}  Nf6 {[%clk 0:02:59]} 4. c4 {[%clk 0:02:58]}  d6 {[%clk 0:02:59]} 5. Bxf6 {[%clk 0:02:58]}  exf6 {[%clk 0:02:55]} 6. Nf3 {[%clk 0:02:58]}  f5 {[%clk 0:02:54]} 7. Nc3 {[%clk 0:02:59]}  g6 {[%clk 0:02:54]} 8. g3 {[%clk 0:02:59]}  Bg7 {[%clk 0:02:54]} 9. Rc1 {[%clk 0:03:00]}  Nd7 {[%clk 0:02:53]} 10. Bg2 {[%clk 0:03:01]}  O-O {[%clk 0:02:41]} 11. O-O {[%clk 0:03:01]}  Re8 {[%clk 0:02:36]} 12. d4 {[%clk 0:03:01]}  Nf6 {[%clk 0:02:35]} 13. Nd2 {[%clk 0:02:51]}  Bxg2 {[%clk 0:02:33]} 14. Kxg2 {[%clk 0:02:52]}  Ne4 {[%clk 0:02:29]} 15. Qc2 {[%clk 0:02:50]}  Nxc3 {[%clk 0:02:07]} 16. Qxc3 {[%clk 0:02:51]}  Qd7 {[%clk 0:02:00]} 17. Qd3 {[%clk 0:02:49]}  Re7 {[%clk 0:01:52]} 18. Nf3 {[%clk 0:02:47]}  Rae8 {[%clk 0:01:50]} 19. Rfd1 {[%clk 0:02:47]}  Qc6 {[%clk 0:01:42]} 20. b4 {[%clk 0:02:46]}  Qe4 {[%clk 0:01:33]} 21. a4 {[%clk 0:02:40]}  c5 {[%clk 0:01:27]} 22. bxc5 {[%clk 0:02:26]}  bxc5 {[%clk 0:01:19]} 23. dxc5 {[%clk 0:02:26]}  dxc5 {[%clk 0:01:20]} 24. Qd5 {[%clk 0:02:27]}  Rc7 {[%clk 0:01:11]} 25. h4 {[%clk 0:02:19]}  Rb8 {[%clk 0:01:08]} 26. Qxe4 {[%clk 0:01:57]}  fxe4 {[%clk 0:01:09]} 27. Ng5 {[%clk 0:01:58]}  Re7 {[%clk 0:00:54]} 28. Rd5 {[%clk 0:01:53]}  h6 {[%clk 0:00:50]} 29. Nh3 {[%clk 0:01:53]}  Rc7 {[%clk 0:00:38]} 30. Nf4 {[%clk 0:01:45]}  Rb2 {[%clk 0:00:35]} 31. h5 {[%clk 0:01:39]}  g5 {[%clk 0:00:31]} 32. Rd8+ {[%clk 0:01:39]}  Kh7 {[%clk 0:00:29]} 33. Nd5 {[%clk 0:01:40]}  Rcb7 {[%clk 0:00:27]} 34. g4 {[%clk 0:01:24]}  Ra2 {[%clk 0:00:25]} 35. Re8 {[%clk 0:01:23]}  Rbb2 {[%clk 0:00:19]} 36. Rf1 {[%clk 0:01:23]}  Rxa4 {[%clk 0:00:19]} 37. Rxe4 {[%clk 0:01:23]}  Rc2 {[%clk 0:00:20]} 38. Re7 {[%clk 0:01:13]}  Rcxc4 {[%clk 0:00:19]} 39. Rxf7 {[%clk 0:01:07]}  Rxg4+ {[%clk 0:00:19]} 40. Kf3 {[%clk 0:01:08]}  Kg8 {[%clk 0:00:19]} 41. Rd7 {[%clk 0:01:07]}  Rh4 {[%clk 0:00:20]} 42. Rb1 {[%clk 0:01:06]}  Rh3+ {[%clk 0:00:14]} 43. Kg2 {[%clk 0:01:05]}  Rxh5 {[%clk 0:00:13]} 44. Rb8+ {[%clk 0:01:02]}  Kh7 {[%clk 0:00:13]} 45. Nf6+ {[%clk 0:01:03]}  Kg6 {[%clk 0:00:12]} 46. Nxh5 {[%clk 0:01:03]} 1-0


[Site "https://www.chess.com"]

[Event "Titled Tuesday Blitz August 16 Late 2022"]
[White "Thiel, Thomas"]
[Black "Winterberg, Lukas"]
[WhiteFideId "4615964"]
[BlackFideId "24622702"]
[WhiteElo "2230"]
[BlackElo "2349"]
[Result "0-1"]
[Round "07"]
[TimeControl "180+1"]
[Date "2022.08.18"]
[WhiteClock "0:00:00"]
[BlackClock "0:00:00"]

1. e4 {[%clk 0:00:00]}  e6 {[%clk 0:00:00]} 2. d4 {[%clk 0:00:00]}  d5 {[%clk 0:00:00]} 3. Nc3 {[%clk 0:00:00]}  Nf6 {[%clk 0:00:00]} 4. Bg5 {[%clk 0:00:00]}  h6 {[%clk 0:00:00]} 5. Bxf6 {[%clk 0:00:00]}  Qxf6 {[%clk 0:00:00]} 6. exd5 {[%clk 0:00:00]}  Bb4 {[%clk 0:00:00]} 7. dxe6 {[%clk 0:00:00]}  Bxe6 {[%clk 0:00:00]} 8. Nf3 {[%clk 0:00:00]}  Nc6 {[%clk 0:00:00]} 9. Be2 {[%clk 0:00:00]}  O-O-O {[%clk 0:00:00]} 10. O-O {[%clk 0:00:00]}  Nxd4 {[%clk 0:00:00]} 11. Nxd4 {[%clk 0:00:00]}  Qxd4 {[%clk 0:00:00]} 12. Qxd4 {[%clk 0:00:00]}  Rxd4 {[%clk 0:00:00]} 13. Nb5 {[%clk 0:00:00]}  Rd2 {[%clk 0:00:00]} 14. Bd3 {[%clk 0:00:00]}  Rd8 {[%clk 0:00:00]} 15. Nxa7+ {[%clk 0:00:00]}  Kb8 {[%clk 0:00:00]} 16. Nb5 {[%clk 0:00:00]}  c6 {[%clk 0:00:00]} 17. a3 {[%clk 0:00:00]}  Ba5 {[%clk 0:00:00]} 18. Nc3 {[%clk 0:00:00]}  Bxc3 {[%clk 0:00:00]} 19. bxc3 {[%clk 0:00:00]}  c5 {[%clk 0:00:00]} 20. Rfd1 {[%clk 0:00:00]}  Rxd1+ {[%clk 0:00:00]} 21. Rxd1 {[%clk 0:00:00]}  Kc7 {[%clk 0:00:00]} 22. Kf1 {[%clk 0:00:00]}  Ra8 {[%clk 0:00:00]} 23. Ra1 {[%clk 0:00:00]}  f5 {[%clk 0:00:00]} 24. Ke2 {[%clk 0:00:00]}  c4 {[%clk 0:00:00]} 0-1


[Site "https://www.chess.com"]

[Event "Titled Tuesday Blitz August 16 Late 2022"]
[White "Thomforde-Toates, Noah"]
[Black "Chigaev, Maksim"]
[WhiteFideId "30951992"]
[BlackFideId "4108116"]
[WhiteElo "2619"]
[BlackElo "2487"]
[Result "0-1"]
[Round "07"]
[TimeControl "180+1"]
[Date "2022.08.16"]
[WhiteClock "0:01:49"]
[BlackClock "0:01:43"]

1. d4 {[%clk 0:02:59]}  Nf6 {[%clk 0:02:59]} 2. Nc3 {[%clk 0:02:58]}  d5 {[%clk 0:02:57]} 3. Bf4 {[%clk 0:02:53]}  g6 {[%clk 0:02:57]} 4. e3 {[%clk 0:02:48]}  c6 {[%clk 0:02:57]} 5. Nf3 {[%clk 0:02:48]}  Bg7 {[%clk 0:02:55]} 6. Be2 {[%clk 0:02:48]}  O-O {[%clk 0:02:52]} 7. O-O {[%clk 0:02:48]}  Bg4 {[%clk 0:02:53]} 8. Ne5 {[%clk 0:02:48]}  Bxe2 {[%clk 0:02:53]} 9. Qxe2 {[%clk 0:02:48]}  Nbd7 {[%clk 0:02:53]} 10. f3 {[%clk 0:02:48]}  Nh5 {[%clk 0:02:49]} 11. Nd3 {[%clk 0:02:44]}  Nxf4 {[%clk 0:02:48]} 12. Nxf4 {[%clk 0:02:45]}  e5 {[%clk 0:02:49]} 13. dxe5 {[%clk 0:02:44]}  Nxe5 {[%clk 0:02:49]} 14. Rad1 {[%clk 0:02:43]}  Qb6 {[%clk 0:02:50]} 15. Na4 {[%clk 0:02:40]}  Qa5 {[%clk 0:02:46]} 16. b3 {[%clk 0:02:40]}  Rfe8 {[%clk 0:02:46]} 17. Rfe1 {[%clk 0:02:34]}  Rad8 {[%clk 0:02:43]} 18. Qd2 {[%clk 0:02:29]}  Qxd2 {[%clk 0:02:21]} 19. Rxd2 {[%clk 0:02:23]}  Nd7 {[%clk 0:02:16]} 20. Rde2 {[%clk 0:02:18]}  b5 {[%clk 0:02:15]} 21. e4 {[%clk 0:02:03]}  dxe4 {[%clk 0:02:10]} 22. Rxe4 {[%clk 0:02:02]}  Rxe4 {[%clk 0:02:11]} 23. Rxe4 {[%clk 0:02:02]}  bxa4 {[%clk 0:02:11]} 24. Rxa4 {[%clk 0:02:03]}  Nc5 {[%clk 0:02:04]} 25. Rxa7 {[%clk 0:02:01]}  Bd4+ {[%clk 0:01:47]} 26. Kf1 {[%clk 0:01:55]}  Nd3 {[%clk 0:01:44]} 27. Nxd3 {[%clk 0:01:55]}  Bxa7 {[%clk 0:01:44]} 28. Ke2 {[%clk 0:01:55]}  Kf8 {[%clk 0:01:44]} 29. Ne5 {[%clk 0:01:53]}  Re8 {[%clk 0:01:43]} 30. f4 {[%clk 0:01:51]}  f6 {[%clk 0:01:43]} 31. Kd3 {[%clk 0:01:49]}  fxe5 {[%clk 0:01:43]} 0-1


[Site "https://www.chess.com"]

[Event "Titled Tuesday Blitz August 16 Late 2022"]
[White "Tristan, Leonardo"]
[Black "Levine, Joseph"]
[WhiteFideId "113816"]
[BlackFideId "30940346"]
[WhiteElo "2404"]
[BlackElo "1810"]
[Result "1-0"]
[Round "07"]
[TimeControl "180+1"]
[Date "2022.08.16"]
[WhiteClock "0:00:46"]
[BlackClock "0:00:52"]

1. d4 {[%clk 0:02:59]}  d5 {[%clk 0:02:59]} 2. Nf3 {[%clk 0:02:59]}  Nf6 {[%clk 0:02:59]} 3. Bf4 {[%clk 0:02:59]}  Bf5 {[%clk 0:02:59]} 4. e3 {[%clk 0:02:59]}  e6 {[%clk 0:02:59]} 5. c4 {[%clk 0:03:00]}  Nbd7 {[%clk 0:02:58]} 6. Nc3 {[%clk 0:02:59]}  Bd6 {[%clk 0:02:57]} 7. Bxd6 {[%clk 0:02:54]}  cxd6 {[%clk 0:02:58]} 8. cxd5 {[%clk 0:02:54]}  Nxd5 {[%clk 0:02:56]} 9. Nxd5 {[%clk 0:02:52]}  exd5 {[%clk 0:02:57]} 10. Bd3 {[%clk 0:02:51]}  Qa5+ {[%clk 0:02:56]} 11. Qd2 {[%clk 0:02:50]}  Qxd2+ {[%clk 0:02:56]} 12. Kxd2 {[%clk 0:02:51]}  Bxd3 {[%clk 0:02:57]} 13. Kxd3 {[%clk 0:02:51]}  Rc8 {[%clk 0:02:55]} 14. Rhc1 {[%clk 0:02:51]}  Ke7 {[%clk 0:02:54]} 15. g4 {[%clk 0:02:43]}  Nf6 {[%clk 0:02:52]} 16. h3 {[%clk 0:02:34]}  Ne4 {[%clk 0:02:51]} 17. Ke2 {[%clk 0:02:34]}  Kd7 {[%clk 0:02:42]} 18. Ne1 {[%clk 0:02:32]}  Rxc1 {[%clk 0:02:41]} 19. Rxc1 {[%clk 0:02:32]}  Rc8 {[%clk 0:02:42]} 20. Rxc8 {[%clk 0:02:31]}  Kxc8 {[%clk 0:02:43]} 21. f3 {[%clk 0:02:30]}  Nf6 {[%clk 0:02:43]} 22. Nd3 {[%clk 0:02:30]}  g5 {[%clk 0:02:43]} 23. Kf2 {[%clk 0:02:22]}  Kd7 {[%clk 0:02:43]} 24. Kg3 {[%clk 0:02:22]}  a5 {[%clk 0:02:41]} 25. h4 {[%clk 0:02:22]}  h6 {[%clk 0:02:41]} 26. Nf2 {[%clk 0:02:21]}  Ne8 {[%clk 0:02:30]} 27. f4 {[%clk 0:02:06]}  f6 {[%clk 0:02:24]} 28. e4 {[%clk 0:02:06]}  dxe4 {[%clk 0:02:07]} 29. Nxe4 {[%clk 0:01:59]}  Ke6 {[%clk 0:02:07]} 30. fxg5 {[%clk 0:01:52]}  fxg5 {[%clk 0:02:07]} 31. hxg5 {[%clk 0:01:52]}  hxg5 {[%clk 0:02:07]} 32. Nxg5+ {[%clk 0:01:52]}  Kd5 {[%clk 0:02:07]} 33. Nf3 {[%clk 0:01:52]}  Ke4 {[%clk 0:02:08]} 34. g5 {[%clk 0:01:46]}  Kd3 {[%clk 0:02:03]} 35. Kf4 {[%clk 0:01:41]}  Kc2 {[%clk 0:02:03]} 36. b3 {[%clk 0:01:29]}  Kb2 {[%clk 0:01:57]} 37. Kf5 {[%clk 0:01:29]}  Kxa2 {[%clk 0:01:57]} 38. Nd2 {[%clk 0:01:30]}  b5 {[%clk 0:01:52]} 39. Ke6 {[%clk 0:01:15]}  Kb2 {[%clk 0:01:49]} 40. Kf7 {[%clk 0:01:07]}  d5 {[%clk 0:01:06]} 41. Kxe8 {[%clk 0:01:05]}  a4 {[%clk 0:01:06]} 42. bxa4 {[%clk 0:01:00]}  bxa4 {[%clk 0:01:07]} 43. g6 {[%clk 0:01:01]}  a3 {[%clk 0:01:08]} 44. g7 {[%clk 0:01:01]}  a2 {[%clk 0:01:08]} 45. g8=Q {[%clk 0:01:01]}  a1=Q {[%clk 0:01:08]} 46. Qxd5 {[%clk 0:00:57]}  Qe1+ {[%clk 0:01:08]} 47. Ne4 {[%clk 0:00:57]}  Qh4 {[%clk 0:01:03]} 48. Kd7 {[%clk 0:00:57]}  Qh7+ {[%clk 0:01:02]} 49. Kd6 {[%clk 0:00:57]}  Qh2+ {[%clk 0:01:00]} 50. Qe5 {[%clk 0:00:56]}  Qh6+ {[%clk 0:00:58]} 51. Kc5 {[%clk 0:00:48]}  Kb3 {[%clk 0:00:56]} 52. d5 {[%clk 0:00:46]}  Qe3+ {[%clk 0:00:54]} 53. Qd4 {[%clk 0:00:46]}  Qc1+ {[%clk 0:00:52]} 54. Qc3+ {[%clk 0:00:46]} 1-0


[Site "https://www.chess.com"]